Workbook

Sheet Калькулятор
B1: Расчет платы за технологическое присоединение к электрическим сетям ООО "ГИП-Электро"
B2: посредством применения стандартизированных тарифных ставок
B3: по договору №
B5: Заявитель:
B6: Объект: жилой дом
B7: Уровень напряжения (0,4/6/10 кВ) | E7: 0.4 | F7: i | L7: да | M7: 3 | N7: 0.4 | O7: =IF(E11<3,2,1) -> 1 | P7: 1
B8: Временная схема электроснабжения (да/нет) | E8: нет | L8: нет | M8: 2 | N8: 6 | P8: 2
B9: Объем присоединяемой мощности, кВт | E9: 0 | F9: N | M9: 1 | N9: 10 | P9: 3
B10: =IF(E10<E9,"Объем максимальной мощности не может быть меньше объема присоединяемой мощности! Расчет неверен!","Объем максимальной мощности, кВт") -> Объем максимальной мощности, кВт | E10: 0 | F10: Nmax | P10: 4
B11: Категория надежности (3/2/1) | E11: 3
B12: Срок выполнения мероприятий, предусмотренных техническими условиями (1 год и менее / 2 года/ 3 года/ 4 года | E12: 1
B13: Объем работ, выполняемых Сетевой организацией
B14: Подготовка и выдача ТУ (да/нет) | E14: да | F14: С1.1. | K14: 709.27 | L14: 191 | M14: 53.23 | P14: 219.22
B15: Проверка выполнения заявителем ТУ (да/нет) | E15: да | F15: С1.2. | K15: 182.07 | L15: 42.88 | M15: 13.09 | P15: 108.88
B16: Участие в осмотре совместно с должностным лицом органа федерального государственного энергетического надзора (да/нет) | E16: нет | F16: С1.3. | K16: 0 | L16: 29.94 | M16: 7.39 | P16: 0
B17: Осуществление действий по фактическому присоединению (да/нет) | E17: да | F17: С1.4. | K17: 313.66 | L17: 499.18 | M17: 436.29 | P17: 54.9
B18: Выполнение мероприятий сетевой организацией, связанных со строительством "последней мили", согласно технических условий | E18: Объем строительства, (кВт, км) | F18: Установленная стандартизированная тарифная ставка, руб.
B19: =INDEX(Товары,SMALL(IF((0<Цены),ROW(Цены),""),ROW(Цены)-ROW('Данные для расчета'!I10))-ROW('Данные для расчета'!I10)) -> Строительство подстанций | E19: =INDEX(ЦенаВывод,SMALL(IF((0<Цены),ROW(Цены),""),ROW(Цены)-ROW('Данные для расчета'!M10))-ROW('Данные для расчета'!M10)) -> нет | F19: =INDEX(Тарифы2,SMALL(IF((0<Цены),ROW(Цены),""),ROW(Цены)-ROW('Данные для расчета'!S10))-ROW('Данные для расчета'!S10)) -> 
B20: Строительство распределительных пунктов | E20: нет
AB28: =ROUND(,2) -> 0
B47: Плата за технологическое присоединение расчитывается по формуле: | L47: =ROUND(E51,2) -> 0
B48: P=(C1.1+С1.2+С1.3+С1.4)*N+C2*Lвл*Z+C3*Lкл*Z+C4*N*Z), и составляет:
B51: без НДС и индекса дефлятора : | E51: =ROUND((E9*E66)+(VALUE('Данные для расчета'!U2)*VALUE(Калькулятор!E83))+(VALUE('Данные для расчета'!U4)*VALUE(Калькулятор!F83))+(VALUE('Данные для расчета'!U12)*VALUE(Калькулятор!H83))+(VALUE('Данные для расчета'!U14)*VALUE(Калькулятор!H83))+(VALUE('Данные для расчета'!U6)*VALUE(G83))+(VALUE('Данные для расчета'!U8)*VALUE(F83))+(VALUE('Данные для расчета'!U10)*VALUE(G83)),2) -> 0 | F51: с учетом индекса-дефлятора*: | G51: =IF(E12="1",L47,IF(E12="2",L51,IF(E12="3",L53,IF(E12="4",L57,0)))) -> 0 | I51: =E51+G51 -> 0 | L51: =ROUND((E51/2)*(E86/100)+((E51/2)*((E86/100)*(F86/100))),2) -> 0
B53: НДС (18%) : | E53: =G51*18% -> 0 | F53: ИТОГО с НДС: (руб.) | G53: =G51+E53 -> 0 | L53: =ROUND((E51/2)*((E86/100)*(((F86-100)/2)+100)/100)+((E51/2)*(((E86/100)*(F86/100)*(G86/100)))),2) -> 0
B54: без НДС | C54: =ROUND(E9*E81+D98*(D93*#REF!+D97*#REF!)+E98*(E93*#REF!+E97*#REF!)+F98*(F93*#REF!+F97*#REF!)+G98*(G93*#REF!+G97*#REF!)+H98*(H97+H93)*E9*O7+I98*(I97+I93)*E9+J98*(J97+J93)*E9,2) ->  | D54: НДС (18%) | E54: =C54*18% ->  | F54: Итого с НДС | G54: =C54+E54 ->  | H54: руб.
B57: Справочные данные в соответствии с Постановлением ГК РБ по тарифам №711 от 19.12.2016г.: | G57: руб/кВт (без учета НДС) | L57: =ROUND((E51/2)*((E86/100)*(F86/100))+((E51/2)*((E86/100)*(F86/100)*(G86/100)*(H86/100))),2) -> 0
B58: Стандартизированная тарифная ставка на покрытие расходов на технологическое присоединение энергопринимающих устройств потребителей электрической энергии, объектов электросетевого хозяйства, принадлежащих сетевым организациям и иным лицам в ценах периода регулирования | E58: Постоянная схема электроснабжения | H58: Временная схема электро- снабжения
E59: 0,4-10 кВ
E60: до 150 кВт включительно | F60: от 150 кВт до 670 кВт включительно | G60: свыше 670 кВт включительно | H60: до 8900 кВт
B61: Стандартизированная ставка С1, в том числе: | E61: =E62+E63+E64+E65 -> 813.83 | F61: =F62+F63+F64+F65 -> 399.48 | G61: =G62+G63+G64+G65 -> 296.34 | H61: =H62+H63+H64+H65 -> 291.42
B62: На подготовку и выдачу сетевой организацией технических условий С1.1 | E62: 298.22 | F62: 176.48 | G62: 194.98 | H62: 109.97
B63: Проверка сетевой организацией выполнения заявителем технических условий С1.2 | E63: 197.29 | F63: 83.18 | G63: 45.66 | H63: 75.52
B64: Участие сетевой организации в осмотре (обследовании) должностным лицом органа федерального государственного энергетического надзора присоединяемых устройств С1.3 | E64: 0 | F64: 32.11 | G64: 15.22 | H64: 0
B65: Осуществление сетевой организацией фактического присоединения объектов заявителя к электрическим сетям и включение коммутационного аппарата (фиксация коммутационного аппарата в положении "включено" С1.4 | E65: 318.32 | F65: 107.71 | G65: 40.48 | H65: 105.93
B66: Применяемый тариф для данного заявителя | E66: =IF(E8="да",SUMIF(E14:E17,"да",H62:H65),IF(E9=E10,IF(E9<=150,SUMIF(E14:E17,"да",E62:E65),IF(E9<=670,SUMIF(E14:E17,"да",F62:F65),IF(E9>670,SUMIF(E14:E17,"да",G62:G65)))),IF(E10<=150,SUMIF(E14:E17,"да",E62:E65),IF(E10<=670,SUMIF(E14:E17,"да",F62:F65),IF(E10>670,SUMIF(E14:E17,"да",G62:G65)))))) -> 813.83
F72: С1 | G72: С1.1 | H72: С1.2 | I72: С1.3 | J72: С1.4
B73: Уровень напряжения, кВ Присоединенямая мощность, кВт | E73: Стандартизированная тарифная ставка, руб/кВт (без учета НДС) | F73: Стандартизированная тарифная ставка, руб/кВт (без учета НДС) | G73: Стандартизированная тарифная ставка, руб/кВт (без учета НДС) | H73: Стандартизированная тарифная ставка, руб/кВт (без учета НДС) | I73: Стандартизированная тарифная ставка, руб/кВт (без учета НДС)
B74: Постоянная схема электроснабжения
B75: 0,4-10 кВ
B76: до 150 кВт включительно | E76: 1205 | F76: 709.27 | G76: 182.07 | H76: 0 | I76: 313.66
B77: от 150 кВт до 670 кВт включительно | E77: 763 | F77: 191 | G77: 42.88 | H77: 29.94 | I77: 499.18
B78: от 150 кВт до 670 кВт включительно | E78: 510 | F78: 53.23 | G78: 13.09 | H78: 7.39 | I78: 436.29
B79: Временная схема электроснабжения
B80: 0,4-10 кВ | E80: 383 | F80: 219.22 | G80: 108.88 | H80: 0 | I80: 54.9
B81: Применяемый тариф для данного заявителя | E81: =IF(E8="да",SUMIF(E14:E17,"да",P14:P17),IF(E9<=150,SUMIF(E14:E17,"да",K14:K17),IF(E9<=670,SUMIF(E14:E17,"да",L14:L17),IF(E9>670,SUMIF(E14:E17,"да",M14:M17))))) -> 1205
B82: Индекс изменения сметной стоимости СМР к федеральным единичным расценкам 2001 года (письмо Министерства строительства и ЖКХ РФ от 09.12.2016г. №41695-хм/09) | E82: Zвл | F82: Zкл(ал) | G82: Zкл(мед) | H82: Z пр
E83: 3.78 | F83: 5.04 | G83: 4.61 | H83: 6.56
B85: *Прогнозные индексы-дефляторы, публикуемые Министерством экономического развития Российской Федерации на соответствующий год (источник www.economy.gov.ru): | E85: 2018 год | F85: 2019 год | G85: 2020 год | H85: 2021 год
E86: 105.5 | F86: 105.3 | G86: 105.1 | H86: 104.6
D88: С2вл | E88: С2бо | F88: C3тр | G88: C3гнб | H88: С4пс | I88: С4тп III кат | J88: С4тп I-II кат
B89: Уровень напряжения, кВ | C89: Присоединенямая мощность, кВт | D89: Стандартизированная тарифная ставка, руб/км (без учета НДС) | E89: Стандартизированная тарифная ставка, руб/км (без учета НДС) | F89: Стандартизированная тарифная ставка, руб/км (без учета НДС) | G89: Стандартизированная тарифная ставка, руб/км (без учета НДС) | H89: Стандартизированная тарифная ставка, руб/кВт (без учета НДС) | I89: Стандартизированная тарифная ставка, руб/кВт (без учета НДС) | J89: Стандартизированная тарифная ставка, руб/кВт (без учета НДС)
B90: 0.4 | C90: до 150 кВт включительно | D90: 190328 | E90: 117522 | F90: 241263 | G90: 1700110 | H90: 0 | I90: 630 | J90: 1933.36
C91: от 150 кВт до 670 кВт включительно | D91: 196224 | E91: 124608 | F91: 264320 | G91: 1730626.4 | H91: 0 | I91: 428 | J91: 1347.42
C92: свыше 670 | D92: 217789 | E92: 142520 | F92: 264320 | G92: 1930780 | H92: 0 | I92: 380 | J92: 1152.52
B93: Применяемый тариф для данного заявителя | D93: =IF(OR(E10>150,E10="",E10=0),IF(E7>1,0,IF(#REF!=0,0,IF(E9<=150,D90,IF(E9<=670,D91,D92)))),(IF(E7>1,0,IF(#REF!=0,0,IF(E9<=150,D90,IF(E9<=670,D91,D92)))))/2) -> 0 | E93: =IF(OR(E10>150,E10="",E10=0),IF(E7>1,0,IF(#REF!=0,0,IF(E9<=150,E90,IF(E9<=670,E91,E92)))),(IF(E7>1,0,IF(#REF!=0,0,IF(E9<=150,E90,IF(E9<=670,E91,E92)))))/2) -> 0 | F93: =IF(OR(E10>150,E10="",E10=0),IF(E7>1,0,IF(#REF!=0,0,IF(E9<=150,F90,IF(E9<=670,F91,F92)))),(IF(E7>1,0,IF(#REF!=0,0,IF(E9<=150,F90,IF(E9<=670,F91,F92)))))/2) -> 0 | G93: =IF(OR(E10>150,E10="",E10=0),IF(E7>1,0,IF(#REF!=0,0,IF(E9<=150,G90,IF(E9<=670,G91,G92)))),(IF(E7>1,0,IF(#REF!=0,0,IF(E9<=150,G90,IF(E9<=670,G91,G92)))))/2) -> 0 | H93: 0 | I93: =IF(OR(E10>150,E10="",E10=0),IF(E7>1,0,IF(E11<3,0,IF(#REF!="нет",0,IF(E9<=150,I90,IF(E9<=670,I91,I92))))),(IF(E7>1,0,IF(E11<3,0,IF(#REF!="нет",0,IF(E9<=150,I90,IF(E9<=670,I91,I92))))))/2) -> 0 | J93: =IF(OR(E10>150,E10="",E10=0),IF(E7>1,0,IF(E11=3,0,IF(#REF!="нет",0, IF(E9<=150,J90,IF(E9<=670,J91,J92))))),(IF(E7>1,0,IF(E11=3,0,IF(#REF!="нет",0, IF(E9<=150,J90,IF(E9<=670,J91,J92))))))/2) -> 0
B94: 6 - 10 | C94: до 150 включительно | D94: 218914 | E94: 133795 | F94: 389165 | G94: 1853961.3 | H94: 185.75 | I94: 630 | J94: 1933.36
C95: от 150 до 670 включительно | D95: 226463 | E95: 141533 | F95: 446494 | G95: 1980916.95 | H95: 185.75 | I95: 428 | J95: 1374.42
C96: свыше 670 | D96: 281223 | E96: 190663 | F96: 511647 | G96: 2489399.95 | H96: 185.75 | I96: 380 | J96: 1152.52
B97: Применяемый тариф для данного заявителя | D97: =IF(OR(E10>150,E10="",E10=0),IF(#REF!=0,0,IF(E9<=150,D94,IF(E9<=670,D95,D96))),(IF(#REF!=0,0,IF(E9<=150,D94,IF(E9<=670,D95,D96))))/2) ->  | E97: =IF(OR(E10>150,E10="",E10=0),IF(#REF!=0,0,IF(E9<=150,E94,IF(E9<=670,E95,E96))),(IF(#REF!=0,0,IF(E9<=150,E94,IF(E9<=670,E95,E96))))/2) ->  | F97: =IF(OR(E10>150,E10="",E10=0),IF(#REF!=0,0,IF(E9<=150,F94,IF(E9<=670,F95,F96))),(IF(#REF!=0,0,IF(E9<=150,F94,IF(E9<=670,F95,F96))))/2) ->  | G97: =IF(OR(E10>150,E10="",E10=0),IF(#REF!=0,0,IF(E9<=150,G94,IF(E9<=670,G95,G96))),(IF(#REF!=0,0,IF(E9<=150,G94,IF(E9<=670,G95,G96))))/2) ->  | H97: =IF(OR(E10>150,E10="",E10=0),IF(#REF!="да",IF(E9<=150,H94,IF(E9<=670,H95,H96)),0),(IF(#REF!="да",IF(E9<=150,H94,IF(E9<=670,H95,H96)),0))/2) ->  | I97: =IF(OR(E10>150,E10="",E10=0),IF(E7<1,0,IF(E11<3,0,IF(#REF!="нет",0,IF(E9<=150,I94,IF(E9<=670,I95,I96))))),(IF(E7<1,0,IF(E11<3,0,IF(#REF!="нет",0,IF(E9<=150,I94,IF(E9<=670,I95,I96))))))/2) ->  | J97: =IF(OR(E10>150,E10="",E10=0),IF(E7<1,0,IF(E11=3,0,IF(#REF!="нет",0,IF(E9<=150,J94,IF(E9<=670,J95,J96))))),(IF(E7<1,0,IF(E11=3,0,IF(#REF!="нет",0,IF(E9<=150,J94,IF(E9<=670,J95,J96))))))/2) -> 
B98: Z | C98: индекс изменения сметной стоимости СМР, рекомендуемый Министерством строительства и жилищно- коммунального хозяйства РФ | D98: 3.77 | E98: 3.77 | F98: 4.45 | G98: 4.45 | H98: 5.63 | I98: 5.63 | J98: 5.63
B99: где:
B100: С1 | C100: Стандартизированная тарифная ставка на покрытие расходов на технологическое присоединение энергопринимающих устройств потребителей электрической энергии, объектов электросетевого хозяйства, принадлежащих сетевым организациям и иным лицам в ценах периода регулирования. В том числе:
B101: С1.1 | C101: на подготовку и выдачу сетевой организацией технических условий
B102: С1.2 | C102: Проверка сетевой организацией выполнения заявителем технических условий
B103: С1.3 | C103: Участие сетевой организации в осмотре (обследовании) должностным лицом органа федерального государственного энергетического надзора присоединяемых устройств
B104: С1.4 | C104: Осуществление сетевой организацией фактического присоединения объектов заявителя к электрическим сетям и включение коммутационного аппарата (фиксация коммутационного аппарата в положении "включено"
B105: С2вл | C105: Стандартизированная тарифная ставка на покрытие расходов сетевой организации на строительство воздушных линий электропередачи в расчете на 1 км линий
B106: С2бо | C106: Стандартизированная тарифная ставка на покрытие расходов сетевой организации на строительство воздушных линий электропередачи по существующим опорам в расчете на 1 км линий
B107: C3тр | C107: Стандартизированная тарифная ставка на покрытие расходов сетевой организации на строительство кабельных линий электропередачи в траншее в расчете на 1 км линий
B108: C3гнб | C108: Стандартизированная тарифная ставка на покрытие расходов сетевой организации на строительство кабельных линий электропередачи методом горизонтально-наклонного бурения в расчете на 1 км линий
B109: С4пс | C109: Стандартизированная тарифная ставка на покрытие расходов сетевой организации на строительство пунктов секционирования
B110: С4тп | C110: Стандартизированная тарифная ставка на покрытие расходов сетевой организации на строительство подстанций (по I-II, III категории надежности)
B112: Расчет составил: инженер СТПП (ФИО, дата) | E112: _____________________________ / ________________________
B114: Расчет проверил: руководитель СТПП (ФИО, дата) | E114: Садртдинов Р.Р._____________________________ / ________________________

Sheet Данные для расчета
A1: Стандартизированные тарифные ставки за технологическое присоединение заявителей к электрическим сетям ООО "ГИП-Электро" на 2017 год
T2: Сумма ВЛ | U2: =SUM(N14:N65) -> 0 | W2: =VALUE(U2)*3.77 -> 0 | Z2: =SUM(N10:N61) -> 0
T4: Сумма КЛ(ал) тр | U4: =SUM(N70:N82,N84:N90,N101:N106,N110:N114,N117:N127,N132:N138,N140:N148,N150:N170,N171,N176:N182) -> 0 | W4: =VALUE(U4)*4.45 -> 0 | Z4: =SUM(N67:N130) -> 0
A5: № п/п | B5: Наименование стандартизированных тарифных ставок | C5: Выбор материалов | I5: Количество, км, кВт | J5: Стоимость в ценах в 2001г.
C6: Максимальная присоединяемая мощность до, кВт | F6: Максимальная длина линии, км | J6: На уровне напряжения ниже 35 кВ и мощностью до 150 кВт включительно | K6: На уровне напряжения ниже 35 кВ и мощностью от 150 до 8900 кВт | T6: Сумма КЛ(мед) тр | U6: =SUM(N92:N99,N107:N109,N129:N130,N172:N175) -> 0 | W6: =VALUE(U12)*5.63 -> 0 | Z6: =SUM(N233:N296) -> 0
C7: 0,38 кВ | D7: 6 кВ | E7: 10 кВ
A8: 1 | B8: 2 | C8: 3 | D8: 4 | E8: 5 | F8: 6 | I8: 7 | J8: 8 | K8: 9 | T8: Сумма КЛ(ал) гнб | U8: =SUM(N185:N189,N194:N202,N204:N212,N215:N219,N221:N230) -> 0 | W8: =VALUE(U14)*5.63 -> 0 | Z8: =SUM(N298:N300) -> 0
T10: Сумма КЛ(мед) гнб | U10: =SUM(N213:N214,N220,N190:N193) -> 0
A11: 1. | B11: Строительство воздушных линий | M11: =IF(VALUE(U2)>0,"да","нет") -> нет
B12: ВЛ 0,4 кВ | T12: Сумма ТП | U12: =SUM(N234:N296) -> 0 | W12: =VALUE(U16)*5.63 -> 0 | Z12: =SUM(#REF!) -> 
A13: 1.1. | B13: ВЛ 0,4 кВ деревянные опоры с ж/б приставками
A14: 1.1.1. | B14: ВЛИ 0,4 кВ проводом СИП сечением до 25 мм² на деревянных опорах с ж/б приставками (ввода) | C14: 76.149112 | F14: 0.11 | J14: =K14/2 -> 40432.06 | K14: 80864.12 | L14: =ROUND(IF(VALUE(Калькулятор!$E$10)>150,K14,J14),2) -> 40432.06 | M14: =CONCATENATE(I14) ->  | N14: =PRODUCT(VALUE(L14),IF(I14="",0,VALUE(I14))) -> 0 | T14: Сумма РП | U14: =SUM(N298:N300) -> 0 | W14: =SUM(W2,W4,W6,W8,W12) -> 0
A15: 1.1.2. | B15: ВЛИ 0,4 кВ проводом СИП сечением до 50 мм² на деревянных опорах с ж/б приставками (ввода) | C15: 114.223668 | F15: 0.14 | J15: =K15/2 -> 60436.25 | K15: 120872.5 | L15: =ROUND(IF(VALUE(Калькулятор!$E$10)>150,K15,J15),2) -> 60436.25 | N15: =PRODUCT(VALUE(L15),IF(I15="",0,VALUE(I15))) -> 0 | W15: =SUM(W3,W5,W7,W11,W13) -> 0
A16: 1.1.3. | B16: ВЛИ 0,4 кВ проводом СИП сечением до 95 мм² на деревянных опорах с ж/б приставками (1 цепное исполнение-магистраль) | C16: 175.72872 | F16: 0.18 | J16: 141996.94 | K16: 283993.88 | L16: =ROUND(IF(VALUE(Калькулятор!$E$10)>150,K16,J16),2) -> 141996.94 | N16: =PRODUCT(VALUE(L16),IF(I16="",0,VALUE(I16))) -> 0
A17: 1.1.4. | B17: ВЛИ 0,4 кВ проводом СИП сечением до 50 мм² на деревянных опорах с ж/б приставками (1 цепное исполнение) | C17: 114.223668 | F17: 0.14 | J17: 119042.29 | K17: 238084.58 | L17: =ROUND(IF(VALUE(Калькулятор!$E$10)>150,K17,J17),2) -> 119042.29 | N17: =PRODUCT(VALUE(L17),IF(I17="",0,VALUE(I17))) -> 0
A18: 1.1.5. | B18: ВЛИ 0,4 кВ проводом СИП сечением до 70 мм² на деревянных опорах с ж/б приставками (1 цепное исполнение) | C18: 140.582976 | F18: 0.16 | J18: =K18/2 -> 124079.465 | K18: 248158.93 | L18: =ROUND(IF(VALUE(Калькулятор!$E$10)>150,K18,J18),2) -> 124079.47 | N18: =PRODUCT(VALUE(L18),IF(I18="",0,VALUE(I18))) -> 0
A19: 1.2. | B19: ВЛ 0,4 кВ железобетонные опоры
A20: 1.2.1. | B20: ВЛИ 0,4 кВ проводом СИП сечением до 25 мм² на ж/б опорах (ввод) | C20: 76.149112 | F20: 0.11 | J20: 40432.06 | K20: 80864.12 | L20: =ROUND(IF(VALUE(Калькулятор!$E$10)>150,K20,J20),2) -> 40432.06 | N20: =PRODUCT(VALUE(L20),IF(I20="",0,VALUE(I20))) -> 0
A21: 1.2.2. | B21: ВЛИ 0,4 кВ проводом СИП сечением до 35 мм² на ж/б опорах (ввод) | J21: 45009.625 | K21: 90019.25 | L21: =ROUND(IF(VALUE(Калькулятор!$E$10)>150,K21,J21),2) -> 45009.63 | N21: =PRODUCT(VALUE(L21),IF(I21="",0,VALUE(I21))) -> 0
A22: 1.2.3. | B22: ВЛИ 0,4 кВ проводом СИП сечением до 50 мм² на ж/б опорах (ввод) | C22: 114.223668 | F22: 0.14 | J22: 50452.26 | K22: 100904.52 | L22: =ROUND(IF(VALUE(Калькулятор!$E$10)>150,K22,J22),2) -> 50452.26 | N22: 0
A23: 1.2.4. | B23: ВЛИ 0,4 кВ проводом СИП сечением до 70 мм² на ж/б опорах (ввод) | J23: 60436.25 | K23: 120872.5 | L23: =ROUND(IF(VALUE(Калькулятор!$E$10)>150,K23,J23),2) -> 60436.25 | N23: 0
A24: 1.2.5. | B24: ВЛИ 0,4 кВ проводом СИП сечением до 16 мм² на ж/б опорах (1 цепное исполнение) | J24: 62222.21 | K24: 124444.42 | L24: =ROUND(IF(VALUE(Калькулятор!$E$10)>150,K24,J24),2) -> 62222.21 | N24: 0
A25: 1.2.6. | B25: ВЛИ 0,4 кВ проводом СИП сечением до 25 мм² на ж/б опорах (1 цепное исполнение) | J25: 75511.775 | K25: 151023.55 | L25: =ROUND(IF(VALUE(Калькулятор!$E$10)>150,K25,J25),2) -> 75511.78 | N25: 0
A26: 1.2.7. | B26: ВЛИ 0,4 кВ проводом СИП сечением до 35 мм² на ж/б опорах (1 цепное исполнение) | J26: 90337.385 | K26: 180674.77 | L26: =ROUND(IF(VALUE(Калькулятор!$E$10)>150,K26,J26),2) -> 90337.39 | N26: 0
A27: 1.2.8. | B27: ВЛИ 0,4 кВ проводом СИП сечением до 50 мм² на ж/б опорах (1 цепное исполнение) | C27: 114.223668 | F27: 0.14 | J27: 105171.99 | K27: 210343.98 | L27: =ROUND(IF(VALUE(Калькулятор!$E$10)>150,K27,J27),2) -> 105171.99 | N27: =PRODUCT(VALUE(L27),IF(I27="",0,VALUE(I27))) -> 0
A28: 1.2.9. | B28: ВЛИ 0,4 кВ проводом СИП сечением до 70 мм² на ж/б опорах (1 цепное исполнение) | C28: 140.582976 | F28: 0.16 | J28: 120158.24 | K28: 240316.48 | L28: =ROUND(IF(VALUE(Калькулятор!$E$10)>150,K28,J28),2) -> 120158.24 | N28: =PRODUCT(VALUE(L28),IF(I28="",0,VALUE(I28))) -> 0
A29: 1.2.10. | B29: ВЛИ 0,4 кВ проводом СИП сечением до 95 мм² на ж/б опорах (1 цепное исполнение) | J29: 126518.99 | K29: 253037.98 | L29: =ROUND(IF(VALUE(Калькулятор!$E$10)>150,K29,J29),2) -> 126518.99 | N29: =PRODUCT(VALUE(L29),IF(I29="",0,VALUE(I29))) -> 0
A30: 1.2.11. | B30: ВЛИ 0,4 кВ проводом СИП сечением 120 мм² на ж/б опорах (1 цепное исполнение) | J30: 148663.595 | K30: 297327.19 | L30: =ROUND(IF(VALUE(Калькулятор!$E$10)>150,K30,J30),2) -> 148663.6 | N30: 0
A31: 1.2.12. | B31: ВЛИ 0,4 кВ проводом СИП сечением 150 мм² на ж/б опорах (1 цепное исполнение) | J31: 152270.82 | K31: 304541.64 | L31: =ROUND(IF(VALUE(Калькулятор!$E$10)>150,K31,J31),2) -> 152270.82 | N31: 0
A32: 1.2.13. | B32: ВЛИ 0,4 кВ проводом СИП сечением 185 мм² на ж/б опорах (1 цепное исполнение) | J32: 155878.04 | K32: 311756.08 | L32: =ROUND(IF(VALUE(Калькулятор!$E$10)>150,K32,J32),2) -> 155878.04 | N32: 0
A33: 1.3. | B33: ВЛ 0,4 кВ по существующим опорам
A34: 1.3.1. | B34: ВЛИ 0,4 кВ проводом АС с площадью поперечного сечения (50) по существующим опорам | J34: 47297.98 | K34: 94595.96 | L34: =ROUND(IF(VALUE(Калькулятор!$E$10)>150,K34,J34),2) -> 47297.98 | N34: 0
A35: 1.3.2. | B35: ВЛИ 0,4 кВ проводом СИП сечением до 16 мм² по существующим опорам | J35: 39244.48 | K35: 78488.96 | L35: =ROUND(IF(VALUE(Калькулятор!$E$10)>150,K35,J35),2) -> 39244.48 | N35: 0
A36: 1.3.3. | B36: ВЛИ 0,4 кВ проводом СИП сечением до 25 мм² по существующим опорам | J36: 40813.74 | K36: 81627.48 | L36: =ROUND(IF(VALUE(Калькулятор!$E$10)>150,K36,J36),2) -> 40813.74 | N36: 0
A37: 1.3.4. | B37: ВЛИ 0,4 кВ проводом СИП сечением до 35 мм² по существующим опорам | J37: 42446.77 | K37: 84893.54 | L37: =ROUND(IF(VALUE(Калькулятор!$E$10)>150,K37,J37),2) -> 42446.77 | N37: 0
A38: 1.3.5. | B38: ВЛИ 0,4 кВ проводом СИП сечением до 50 мм² по существующим опорам | C38: 114.223668 | F38: 0.14 | J38: 46419.02 | K38: 92838.04 | L38: =ROUND(IF(VALUE(Калькулятор!$E$10)>150,K38,J38),2) -> 46419.02 | N38: 0
A39: 1.3.6. | B39: ВЛИ 0,4 кВ проводом СИП сечением до 70 мм² по существующим опорам | C39: 140.582976 | F39: 0.16 | J39: 58436.605 | K39: 116873.21 | L39: =ROUND(IF(VALUE(Калькулятор!$E$10)>150,K39,J39),2) -> 58436.61 | N39: 0
A40: 1.3.7. | B40: ВЛИ 0,4 кВ проводом СИП сечением до 95 мм² по существующим опорам | C40: 175.72872 | F40: 0.18 | J40: 67766.545 | K40: 135533.09 | L40: =ROUND(IF(VALUE(Калькулятор!$E$10)>150,K40,J40),2) -> 67766.55 | N40: 0
B41: ВЛ-6-10 кВ
A42: 1.4. | B42: ВЛ-6-10 кВ деревянные опоры с ж/б приставками | M42: =CONCATENATE(I42) -> 
A43: 1.4.1. | B43: ВЛЗ 6-10 кВ проводом СИП сечением до 50 мм² на деревянных опорах с ж/б приставками (1 цепное исполнение) | D43: 1803.5316 | E43: 3005.886 | F43: 2.7 | J43: 143765.195 | K43: 287530.39 | L43: =ROUND(IF(VALUE(Калькулятор!$E$10)>150,K43,J43),2) -> 143765.2 | N43: =PRODUCT(VALUE(L43),IF(I43="",0,VALUE(I43))) -> 0
A44: 1.4.2. | B44: ВЛЗ 6-10 кВ проводом СИП сечением до 70 мм² на деревянных опорах с ж/б приставками (1 цепное исполнение) | D44: 2219.7312 | E44: 3699.552 | F44: 3.3 | J44: 167369.27 | K44: 334738.54 | L44: =ROUND(IF(VALUE(Калькулятор!$E$10)>150,K44,J44),2) -> 167369.27 | N44: =PRODUCT(VALUE(L44),IF(I44="",0,VALUE(I44))) -> 0
A45: 1.4.3. | B45: ВЛЗ 6-10 кВ проводом СИП сечением до 95 мм² на деревянных опорах с ж/б приставками (1 цепное исполнение) | D45: 2774.664 | E45: 4624.44 | F45: 2.5 | J45: 194317.94 | K45: 388635.88 | L45: =ROUND(IF(VALUE(Калькулятор!$E$10)>150,K45,J45),2) -> 194317.94 | N45: =PRODUCT(VALUE(L45),IF(I45="",0,VALUE(I45))) -> 0
A46: 1.4.4. | B46: ВЛЗ 6-10 кВ проводом СИП сечением до 120 мм² на деревянных опорах с ж/б приставками (1 цепное исполнение) | D46: 3144.6192 | E46: 5241.032 | F46: 2.5 | J46: 222463.185 | K46: 444926.37 | L46: =ROUND(IF(VALUE(Калькулятор!$E$10)>150,K46,J46),2) -> 222463.19 | N46: =PRODUCT(VALUE(L46),IF(I46="",0,VALUE(I46))) -> 0
A47: 1.5. | B47: ВЛ 6-10 кВ (железобетонные опоры)
A48: 1.5.1. | B48: ВЛЗ 6-10 кВ с проводом СИП сечением до 35 мм² на ж/б опорах (1 цепное исполнение) | J48: 128180.315 | K48: 256360.63 | L48: =ROUND(IF(VALUE(Калькулятор!$E$10)>150,K48,J48),2) -> 128180.32 | N48: =PRODUCT(VALUE(L48),IF(I48="",0,VALUE(I48))) -> 0
A49: 1.5.2. | B49: ВЛЗ 6-10 кВ с проводом СИП сечением до 50 мм² на ж/б опорах (1 цепное исполнение) | D49: 1803.5316 | E49: 3005.886 | F49: 2.7 | J49: 141665.375 | K49: 283330.75 | L49: =ROUND(IF(VALUE(Калькулятор!$E$10)>150,K49,J49),2) -> 141665.38 | N49: =PRODUCT(VALUE(L49),IF(I49="",0,VALUE(I49))) -> 0
A50: 1.5.3. | B50: ВЛЗ 6-10 кВ с проводом СИП сечением до 70 мм² на ж/б опорах (1 цепное исполнение) | D50: 2219.7312 | E50: 3699.552 | F50: 3.3 | J50: 153157.185 | K50: 306314.37 | L50: =ROUND(IF(VALUE(Калькулятор!$E$10)>150,K50,J50),2) -> 153157.19 | N50: 0
A51: 1.5.4. | B51: ВЛЗ 6-10 кВ с проводом СИП сечением до 70 мм² на ж/б опорах (2 цепное исполнение) | J51: 321630.09 | K51: 643260.18 | L51: =ROUND(IF(VALUE(Калькулятор!$E$10)>150,K51,J51),2) -> 321630.09 | N51: 0
A52: 1.5.5. | B52: ВЛЗ 6-10 кВ с проводом СИП сечением до 95 мм² на ж/б опорах (1 цепное исполнение) | D52: 2774.664 | E52: 4624.44 | F52: 2.5 | J52: 163123.6 | K52: 326247.2 | L52: =ROUND(IF(VALUE(Калькулятор!$E$10)>150,K52,J52),2) -> 163123.6 | N52: 0
A53: 1.5.6. | B53: ВЛЗ 6-10 кВ с проводом СИП сечением до 95 мм² на ж/б опорах (2 цепное исполнение) | J53: 342559.56 | K53: 685119.12 | L53: =ROUND(IF(VALUE(Калькулятор!$E$10)>150,K53,J53),2) -> 342559.56 | N53: 0
A54: 1.5.7. | B54: ВЛЗ 6-10 кВ с проводом СИП сечением до 120 мм² на ж/б опорах (1 цепное исполнение) | D54: 3144.6192 | E54: 5241.032 | F54: 2.5 | J54: 176280.095 | K54: 352560.19 | L54: =ROUND(IF(VALUE(Калькулятор!$E$10)>150,K54,J54),2) -> 176280.1 | N54: 0
A55: 1.5.8. | B55: ВЛЗ 6-10 кВ с проводом СИП сечением до 150 мм² на ж/б опорах (1 цепное исполнение) | J55: 182392.89 | K55: 364785.78 | L55: =ROUND(IF(VALUE(Калькулятор!$E$10)>150,K55,J55),2) -> 182392.89 | N55: 0
A56: 1.5.9. | B56: ВЛЗ 6-10 кВ с проводом СИП сечением до 120 мм² на ж/б опорах (2 цепное исполнение) | J56: 370188.205 | K56: 740376.41 | L56: =ROUND(IF(VALUE(Калькулятор!$E$10)>150,K56,J56),2) -> 370188.21 | N56: 0
A57: 1.5.10. | B57: ВЛЗ 6-10 кВ с проводом АС сечением до 35 мм² на ж/б опорах (1 цепное исполнение) | J57: 100214.485 | K57: 200428.97 | L57: =ROUND(IF(VALUE(Калькулятор!$E$10)>150,K57,J57),2) -> 100214.49 | N57: 0
A58: 1.5.11. | B58: ВЛЗ 6-10 кВ с проводом АС сечением до 50 мм² на ж/б опорах (1 цепное исполнение) | J58: 111984.82 | K58: 223969.64 | L58: =ROUND(IF(VALUE(Калькулятор!$E$10)>150,K58,J58),2) -> 111984.82 | N58: 0
A59: 1.5.12. | B59: ВЛЗ 6-10 кВ с проводом АС сечением до 70 мм² на ж/б опорах (1 цепное исполнение) | J59: 117799.845 | K59: 235599.69 | L59: =ROUND(IF(VALUE(Калькулятор!$E$10)>150,K59,J59),2) -> 117799.85 | N59: 0
A60: 1.5.13. | B60: ВЛЗ 6-10 кВ с проводом АС сечением до 95 мм² на ж/б опорах (1 цепное исполнение) | J60: 139806.2 | K60: 279612.4 | L60: =ROUND(IF(VALUE(Калькулятор!$E$10)>150,K60,J60),2) -> 139806.2 | N60: 0
A61: 1.6. | B61: ВЛ 6-10 кВ по существующим опорам
A62: 1.6.1. | B62: ВЛЗ 6-10 кВ с проводом СИП сечением до 50 мм² по существующим опорам | D62: 1803.5316 | E62: 3005.886 | F62: 2.7 | J62: 89103.48 | K62: 178206.96 | L62: =ROUND(IF(VALUE(Калькулятор!$E$10)>150,K62,J62),2) -> 89103.48 | N62: =PRODUCT(VALUE(L62),IF(I62="",0,VALUE(I62))) -> 0
A63: 1.6.2. | B63: ВЛЗ 6-10 кВ с проводом СИП сечением до 70 мм² по существующим опорам | J63: 93862.705 | K63: 187725.41 | L63: =ROUND(IF(VALUE(Калькулятор!$E$10)>150,K63,J63),2) -> 93862.71 | N63: =PRODUCT(VALUE(L63),IF(I63="",0,VALUE(I63))) -> 0
A64: 1.6.3. | B64: ВЛЗ 6-10 кВ с проводом СИП сечением до 95 мм² по существующим опорам | D64: 2774.664 | E64: 4624.44 | F64: 2.5 | J64: 102539.89 | K64: 205079.78 | L64: =ROUND(IF(VALUE(Калькулятор!$E$10)>150,K64,J64),2) -> 102539.89 | N64: 0
A65: 1.6.4. | B65: ВЛЗ 6-10 кВ с проводом СИП сечением до 120 мм² по существующим опорам | D65: 3144.6192 | E65: 5241.032 | F65: 2.5 | J65: 115975.735 | K65: 231951.47 | L65: =ROUND(IF(VALUE(Калькулятор!$E$10)>150,K65,J65),2) -> 115975.74 | N65: 0
A67: 2. | B67: Строительство кабельных линий | M67: =IF(OR(VALUE(U4)>0,VALUE(U6)>0,VALUE(U8)>0,VALUE(U10)>0),"да","нет") -> нет
A68: 2.1. | B68: КЛ 0,4 кВ (в траншее) | M68: =CONCATENATE(I68) -> 
A69: 2.1.1. | B69: Кабель бронированный с изоляцией из сшитого полиэтилена и алюминиевой токопроводящей жилой
A70: 2.1.1.1. | B70: КЛ 0,4 кВ кабелем марки АПвБбШв сечением 4х50 мм² (1 цепное исполнение) в траншее | C70: 87.86436 | F70: 0.17 | J70: 138702.295 | K70: 277404.59 | L70: =ROUND(IF(VALUE(Калькулятор!$E$10)>150,K70,J70),2) -> 138702.3 | N70: =PRODUCT(VALUE(L70),IF(I70="",0,VALUE(I70))) -> 0
A71: 2.1.1.2. | B71: КЛ 0,4 кВ кабелем марки АПвБбШв сечением 4х70 мм² (1 цепное исполнение) в траншее | J71: 146844.32 | K71: 293688.64 | L71: =ROUND(IF(VALUE(Калькулятор!$E$10)>150,K71,J71),2) -> 146844.32 | N71: =PRODUCT(VALUE(L71),IF(I71="",0,VALUE(I71))) -> 0
A72: 2.1.1.3. | B72: КЛ 0,4 кВ кабелем марки АПвБбШв сечением 4х95 мм² (1 цепное исполнение) в траншее | C72: 129.4534904 | F72: 0.22 | J72: 153469.4 | K72: 306938.8 | L72: =ROUND(IF(VALUE(Калькулятор!$E$10)>150,K72,J72),2) -> 153469.4 | N72: 0
A73: 2.1.1.4. | B73: КЛ 0,4 кВ кабелем марки АПвБбШв сечением 4х120 мм² (1 цепное исполнение) в траншее | C73: 147.6121248 | F73: 0.24 | J73: 165942.685 | K73: 331885.37 | L73: =ROUND(IF(VALUE(Калькулятор!$E$10)>150,K73,J73),2) -> 165942.69 | N73: 0
A74: 2.1.1.5. | B74: КЛ 0,4 кВ кабелем марки АПвБбШв сечением 4х150 мм² (1 цепное исполнение) в траншее | J74: 173091.3 | K74: 346182.6 | L74: =ROUND(IF(VALUE(Калькулятор!$E$10)>150,K74,J74),2) -> 173091.3 | N74: 0
A75: 2.1.1.6. | B75: КЛ 0,4 кВ кабелем марки АПвБбШв сечением 4х185 мм² (1 цепное исполнение) в траншее | J75: 179547.775 | K75: 359095.55 | L75: =ROUND(IF(VALUE(Калькулятор!$E$10)>150,K75,J75),2) -> 179547.78 | N75: 0
A76: 2.1.1.7. | B76: КЛ 0,4 кВ кабелем марки АПвБбШв сечением 4х240 мм² (1 цепное исполнение) в траншее | C76: 219.0751376 | F76: 0.32 | J76: 224379.1 | K76: 448758.2 | L76: =ROUND(IF(VALUE(Калькулятор!$E$10)>150,K76,J76),2) -> 224379.1 | N76: 0
A77: 2.1.1.8. | B77: КЛ 0,4 кВ кабелем марки АПвБбШв сечением 4х70 мм² (2 цепное исполнение) в траншее | J77: 228895.335 | K77: 457790.67 | L77: =ROUND(IF(VALUE(Калькулятор!$E$10)>150,K77,J77),2) -> 228895.34 | N77: 0
A78: 2.1.1.9. | B78: КЛ 0,4 кВ кабелем марки АПвБбШв сечением 4х95 мм² (2 цепное исполнение) в траншее | J78: 233470.295 | K78: 466940.59 | L78: =ROUND(IF(VALUE(Калькулятор!$E$10)>150,K78,J78),2) -> 233470.3 | N78: 0
A79: 2.1.1.10. | B79: КЛ 0,4 кВ кабелем марки АПвБбШв сечением 4х120 мм² (2 цепное исполнение) в траншее | J79: =K79/2 -> 237930.975 | K79: 475861.95 | L79: =ROUND(IF(VALUE(Калькулятор!$E$10)>150,K79,J79),2) -> 237930.98 | N79: 0
A80: 2.1.1.11. | B80: КЛ 0,4 кВ кабелем марки АПвБбШв сечением 4х150 мм² (2 цепное исполнение) в траншее | J80: 242698.015 | K80: 485396.03 | L80: =ROUND(IF(VALUE(Калькулятор!$E$10)>150,K80,J80),2) -> 242698.02 | N80: 0
A81: 2.1.1.12. | B81: КЛ 0,4 кВ кабелем марки АПвБбШв сечением 4х185 мм² (2 цепное исполнение) в траншее | J81: 247190.085 | K81: 494380.17 | L81: =ROUND(IF(VALUE(Калькулятор!$E$10)>150,K81,J81),2) -> 247190.09 | N81: 0
A82: 2.1.1.13. | B82: КЛ 0,4 кВ кабелем марки АПвБбШв сечением 4х240 мм² (2 цепное исполнение) в траншее | J82: 251570.175 | K82: 503140.35 | L82: =ROUND(IF(VALUE(Калькулятор!$E$10)>150,K82,J82),2) -> 251570.18 | N82: 0
A83: 2.1.2. | B83: Кабель бронированный с изоляцией из ПВХ пластиката и алюминевой токопроводящей жилой
A84: 2.1.2.1. | B84: КЛ 0,4 кВ кабелем АВБбШв сечением 4х50 мм² (1 цепное исполнение) в траншее | J84: 137908.25 | K84: 275816.5 | L84: =ROUND(IF(VALUE(Калькулятор!$E$10)>150,K84,J84),2) -> 137908.25 | N84: 0
A85: 2.1.2.2. | B85: КЛ 0,4 кВ кабелем АВБбШв сечением 4х70 мм² (1 цепное исполнение) в траншее | J85: 142392.95 | K85: 284785.9 | L85: =ROUND(IF(VALUE(Калькулятор!$E$10)>150,K85,J85),2) -> 142392.95 | N85: 0
A86: 2.1.2.3. | B86: КЛ 0,4 кВ кабелем АВБбШв сечением 4х95 мм² (1 цепное исполнение) в траншее | J86: 147098.025 | K86: 294196.05 | L86: =ROUND(IF(VALUE(Калькулятор!$E$10)>150,K86,J86),2) -> 147098.03 | N86: 0
A87: 2.1.2.4. | B87: КЛ 0,4 кВ кабелем АВБбШв сечением 4х120 мм² (1 цепное исполнение) в траншее | J87: 151577.43 | K87: 303154.86 | L87: =ROUND(IF(VALUE(Калькулятор!$E$10)>150,K87,J87),2) -> 151577.43 | N87: 0
A88: 2.1.2.5. | B88: КЛ 0,4 кВ кабелем АВБбШв сечением 4х150 мм² (1 цепное исполнение) в траншее | J88: 156347.75 | K88: 312695.5 | L88: =ROUND(IF(VALUE(Калькулятор!$E$10)>150,K88,J88),2) -> 156347.75 | N88: 0
A89: 2.1.2.6. | B89: КЛ 0,4 кВ кабелем АВБбШв сечением 4х185 мм² (1 цепное исполнение) в траншее | J89: 160681.89 | K89: 321363.78 | L89: =ROUND(IF(VALUE(Калькулятор!$E$10)>150,K89,J89),2) -> 160681.89 | N89: 0
A90: 2.1.2.7. | B90: КЛ 0,4 кВ кабелем АВБбШв сечением 4х240 мм² (1 цепное исполнение) в траншее | J90: 165214.05 | K90: 330428.1 | L90: =ROUND(IF(VALUE(Калькулятор!$E$10)>150,K90,J90),2) -> 165214.05 | N90: 0
A91: 2.1.3. | B91: Кабель бронированный с изоляцией из сшитого полиэтилена и медной токопроводящей жилой
A92: 2.1.3.1. | B92: КЛ 0,4 кВ кабелем ПвБбШв сечением 4х25 мм² (1 цепное исполнение) в траншее | J92: 203358.315 | K92: 406716.63 | L92: =ROUND(IF(VALUE(Калькулятор!$E$10)>150,K92,J92),2) -> 203358.32 | N92: 0
A93: 2.1.3.2. | B93: КЛ 0,4 кВ кабелем ПвБбШв сечением 4х50 мм² (1 цепное исполнение) в траншее | C93: 140.582976 | F93: 0.18 | J93: 231088.995 | K93: 462177.99 | L93: =ROUND(IF(VALUE(Калькулятор!$E$10)>150,K93,J93),2) -> 231089 | N93: 0
A94: 2.1.3.3. | B94: КЛ 0,4 кВ кабелем ПвБбШв сечением 4х70 мм² (1 цепное исполнение) в траншее | J94: 279433.535 | K94: 558867.07 | L94: =ROUND(IF(VALUE(Калькулятор!$E$10)>150,K94,J94),2) -> 279433.54 | N94: 0
A95: 2.1.3.4. | B95: КЛ 0,4 кВ кабелем ПвБбШв сечением 4х95 мм² (1 цепное исполнение) в траншее | C95: 140.582976 | F95: 0.33 | J95: 333293.705 | K95: 666587.41 | L95: =ROUND(IF(VALUE(Калькулятор!$E$10)>150,K95,J95),2) -> 333293.71 | N95: 0
A96: 2.1.3.5. | B96: КЛ 0,4 кВ кабелем ПвБбШв сечением 4х120 мм² (1 цепное исполнение) в траншее | C96: 159.3273728 | F96: 0.37 | J96: 387885.47 | K96: 775770.94 | L96: =ROUND(IF(VALUE(Калькулятор!$E$10)>150,K96,J96),2) -> 387885.47 | N96: 0
A97: 2.1.3.6. | B97: КЛ 0,4 кВ кабелем ПвБбШв сечением 4х150 мм² (1 цепное исполнение) в траншее | J97: 436229.63 | K97: 872459.26 | L97: =ROUND(IF(VALUE(Калькулятор!$E$10)>150,K97,J97),2) -> 436229.63 | N97: 0
A98: 2.1.3.7. | B98: КЛ 0,4 кВ кабелем ПвБбШв сечением 4х185 мм² (1 цепное исполнение) в траншее | J98: 569496.715 | K98: 1138993.43 | L98: =ROUND(IF(VALUE(Калькулятор!$E$10)>150,K98,J98),2) -> 569496.72 | N98: 0
A99: 2.1.3.8. | B99: КЛ 0,4 кВ кабелем ПвБбШв сечением 4х240 мм² (1 цепное исполнение) в траншее | C99: 234.8907224 | F99: 0.5 | J99: 646059.185 | K99: 1292118.37 | L99: =ROUND(IF(VALUE(Калькулятор!$E$10)>150,K99,J99),2) -> 646059.19 | N99: 0
A100: 2.1.4. | B100: Кабель силовой
A101: 2.1.4.1 | B101: КЛ 0,4 кВ кабелем ААШвУ сечением 3х50 мм² (1 цепное исполнение) в траншее | J101: 65382.765 | K101: 130765.53 | L101: =ROUND(IF(VALUE(Калькулятор!$E$10)>150,K101,J101),2) -> 65382.77 | N101: 0
A102: 2.1.4.2 | B102: КЛ 0,4 кВ кабелем ААШвУ сечением 3х70 мм² (1 цепное исполнение) в траншее | J102: 72881.835 | K102: 145763.67 | L102: =ROUND(IF(VALUE(Калькулятор!$E$10)>150,K102,J102),2) -> 72881.84 | N102: 0
A103: 2.1.4.3 | B103: КЛ 0,4 кВ кабелем ААШвУ сечением 3х95 мм² (1 цепное исполнение) в траншее | J103: 115711.06 | K103: 231422.12 | L103: =ROUND(IF(VALUE(Калькулятор!$E$10)>150,K103,J103),2) -> 115711.06 | N103: 0
A104: 2.1.4.4 | B104: КЛ 0,4 кВ кабелем ААШвУ сечением 3х120 мм² (1 цепное исполнение) в траншее | J104: 127272.885 | K104: 254545.77 | L104: =ROUND(IF(VALUE(Калькулятор!$E$10)>150,K104,J104),2) -> 127272.89 | N104: 0
A105: 2.1.4.5 | B105: КЛ 0,4 кВ кабелем ААШв сечением 4х120 мм² в траншее | J105: 110126.855 | K105: 220253.71 | L105: =ROUND(IF(VALUE(Калькулятор!$E$10)>150,K105,J105),2) -> 110126.86 | N105: 0
A106: 2.1.4.6 | B106: КЛ 0,4 кВ кабелем ААШв сечением 4х240 мм² в траншее | J106: 146770.68 | K106: 293541.36 | L106: =ROUND(IF(VALUE(Калькулятор!$E$10)>150,K106,J106),2) -> 146770.68 | N106: 0
A107: 2.1.4.7 | B107: КЛ 0,4 кВ кабелем ВБбШв сечением 4х50 мм² в траншее | J107: 115208.685 | K107: 230417.37 | L107: =ROUND(IF(VALUE(Калькулятор!$E$10)>150,K107,J107),2) -> 115208.69 | N107: 0
A108: 2.1.4.8 | B108: КЛ 0,4 кВ кабелем ВБбШв сечением 4х70 мм² в траншее | J108: 149888.325 | K108: 299776.65 | L108: =ROUND(IF(VALUE(Калькулятор!$E$10)>150,K108,J108),2) -> 149888.33 | N108: 0
A109: 2.1.4.9 | B109: КЛ 0,4 кВ кабелем ВБбШв сечением 4х95 мм² в траншее | J109: 189110.71 | K109: 378221.42 | L109: =ROUND(IF(VALUE(Калькулятор!$E$10)>150,K109,J109),2) -> 189110.71 | N109: 0
A110: 2.1.4.10 | B110: КЛ 0,4 кВ кабелем АСБнУ 3х70 мм² в траншее | J110: 88369.545 | K110: 176739.09 | L110: =ROUND(IF(VALUE(Калькулятор!$E$10)>150,K110,J110),2) -> 88369.55 | N110: 0
A111: 2.1.4.11 | B111: КЛ 0,4 кВ кабелем АВВГ 4х35 мм² в траншее | J111: 54032.815 | K111: 108065.63 | L111: =ROUND(IF(VALUE(Калькулятор!$E$10)>150,K111,J111),2) -> 54032.82 | N111: 0
A112: 2.1.4.12 | B112: КЛ 0,4 кВ кабелем АВВГ 4х50 мм² в траншее | J112: 69963.205 | K112: 139926.41 | L112: =ROUND(IF(VALUE(Калькулятор!$E$10)>150,K112,J112),2) -> 69963.21 | N112: 0
A113: 2.1.4.13 | B113: КЛ 0,4 кВ кабелем АВВГ 4х70 мм² в траншее | J113: 89516.58 | K113: 179033.16 | L113: =ROUND(IF(VALUE(Калькулятор!$E$10)>150,K113,J113),2) -> 89516.58 | N113: 0
A114: 2.1.4.14 | B114: КЛ 0,4 кВ кабелем АВВГ 4х95 мм² в траншее | J114: 119869.895 | K114: 239739.79 | L114: =ROUND(IF(VALUE(Калькулятор!$E$10)>150,K114,J114),2) -> 119869.9 | N114: 0
A115: 2.2. | B115: КЛ 6-10 кВ (в траншее)
A116: 2.2.1. | B116: Кабель с изоляцией из сшитого полиэтилена и алюминиевой токопроводящей жилой
A117: 2.2.1.1 | B117: КЛ 6-10 кВ кабелем марки АПвПу сечением до 3х(1х50 мм²) (1 цепное исполнение) в траншее | J117: 227818.25 | K117: 455636.5 | L117: =ROUND(IF(VALUE(Калькулятор!$E$10)>150,K117,J117),2) -> 227818.25 | N117: =PRODUCT(VALUE(L117),IF(I117="",0,VALUE(I117))) -> 0
A118: 2.2.1.2 | B118: КЛ 6-10 кВ кабелем марки АПвПу сечением до 3х(1х70 мм²) (1 цепное исполнение) в траншее | J118: 265948.475 | K118: 531896.95 | L118: =ROUND(IF(VALUE(Калькулятор!$E$10)>150,K118,J118),2) -> 265948.48 | N118: 0
A119: 2.2.1.3 | B119: КЛ 6-10 кВ кабелем марки АПвПу сечением до 3х(1х95 мм²) (1 цепное исполнение) в траншее | J119: 283935.225 | K119: 567870.45 | L119: =ROUND(IF(VALUE(Калькулятор!$E$10)>150,K119,J119),2) -> 283935.23 | N119: 0
A120: 2.2.1.4 | B120: КЛ 6-10 кВ кабелем марки АПвПу сечением до 3х(1х120 мм²) (1 цепное исполнение) в траншее | D120: 2663.67744 | E120: 4439.4624 | F120: 3.5 | J120: 301922.275 | K120: 603844.55 | L120: =ROUND(IF(VALUE(Калькулятор!$E$10)>150,K120,J120),2) -> 301922.28 | N120: 0
A121: 2.2.1.5 | B121: КЛ 6-10 кВ кабелем марки АПвПу сечением до 3х(1х185 мм²) (1 цепное исполнение) в траншее | J121: 319909.345 | K121: 639818.69 | L121: =ROUND(IF(VALUE(Калькулятор!$E$10)>150,K121,J121),2) -> 319909.35 | N121: 0
A122: 2.2.1.6 | B122: КЛ 6-10 кВ кабелем марки АПвПу сечением до 3х(1х240 мм²) (1 цепное исполнение) в траншее | D122: 3903.02736 | E122: 6505.0456 | F122: 4.7 | J122: 337896.725 | K122: 675793.45 | L122: =ROUND(IF(VALUE(Калькулятор!$E$10)>150,K122,J122),2) -> 337896.73 | N122: 0
A123: 2.2.1.7 | B123: КЛ 6-10 кВ кабелем марки АПвПу сечением до 3х(1х400 мм²) (1 цепное исполнение) в траншее | D123: 4855.662 | E123: 8092.77 | F123: 6.4 | J123: 348623.75 | K123: 697247.5 | L123: =ROUND(IF(VALUE(Калькулятор!$E$10)>150,K123,J123),2) -> 348623.75 | N123: 0
A124: 2.2.1.8 | B124: КЛ 6-10 кВ кабелем марки АПвПу сечением до 3х(1х500 мм²) (1 цепное исполнение) в траншее | D124: 5429.09256 | E124: 9048.4876 | F124: 7 | J124: 377991.7 | K124: 755983.4 | L124: =ROUND(IF(VALUE(Калькулятор!$E$10)>150,K124,J124),2) -> 377991.7 | N124: 0
A125: 2.2.1.9 | B125: КЛ 6-10 кВ кабелем марки АПвПу сечением до 3х(1х630 мм²) (1 цепное исполнение) в траншее | D125: 6039.51864 | E125: 10065.8644 | F125: 8 | J125: 424104.78 | K125: 848209.56 | L125: =ROUND(IF(VALUE(Калькулятор!$E$10)>150,K125,J125),2) -> 424104.78 | N125: 0
A126: 2.2.1.10 | B126: КЛ 6-10 кВ кабелем марки АПвПу сечением до 3х(1х240 мм²) (2 цепное исполнение) в траншее | J126: 574423.82 | K126: 1148847.64 | L126: =ROUND(IF(VALUE(Калькулятор!$E$10)>150,K126,J126),2) -> 574423.82 | N126: 0
A127: 2.2.1.11 | B127: КЛ 6-10 кВ кабелем марки АПвПу сечением до 3х(1х500 мм²) (2 цепное исполнение) в траншее | J127: 642585.89 | K127: 1285171.78 | L127: =ROUND(IF(VALUE(Калькулятор!$E$10)>150,K127,J127),2) -> 642585.89 | N127: 0
A128: 2.2.2. | B128: Кабель бронированный с изоляцией из ПВХ пластиката и медной токопроводящей жилой
A129: 2.2.2.1. | B129: КЛ 6-10 кВ кабелем марки ВБбШв сечением 3х120 мм² (1 цепное исполнение) в траншее | D129: 2728.4196 | E129: 4547.366 | F129: 4.5 | J129: 325591.73 | K129: 651183.46 | L129: =ROUND(IF(VALUE(Калькулятор!$E$10)>150,K129,J129),2) -> 325591.73 | N129: =PRODUCT(VALUE(L129),IF(I129="",0,VALUE(I129))) -> 0
A130: 2.2.2.2. | B130: КЛ 6-10 кВ кабелем марки ВБбШв сечением 3х240 мм² (1 цепное исполнение) в траншее | D130: 4115.7516 | E130: 6859.586 | F130: 6 | J130: 620122.915 | K130: 1240245.83 | L130: =ROUND(IF(VALUE(Калькулятор!$E$10)>150,K130,J130),2) -> 620122.92 | N130: =PRODUCT(VALUE(L130),IF(I130="",0,VALUE(I130))) -> 0
A131: 2.2.3. | B131: Кабель бронированный с бумажной изоляцией в свинцовой оболочке с алюминиевой токопроводящей жилой
A132: 2.2.3.1 | B132: КЛ 6-10 кВ кабелем АСБ сечением 3х50 мм² (1 цепное исполнение) в траншее | J132: 154930.59 | K132: 309861.18 | L132: =ROUND(IF(VALUE(Калькулятор!$E$10)>150,K132,J132),2) -> 154930.59 | N132: =PRODUCT(VALUE(L132),IF(I132="",0,VALUE(I132))) -> 0
A133: 2.2.3.2 | B133: КЛ 6-10 кВ кабелем АСБ сечением 3х70 мм² (1 цепное исполнение) в траншее | J133: 165298.005 | K133: 330596.01 | L133: =ROUND(IF(VALUE(Калькулятор!$E$10)>150,K133,J133),2) -> 165298.01 | N133: 0
A134: 2.2.3.3 | B134: КЛ 6-10 кВ кабелем АСБ сечением 3х95 мм² (1 цепное исполнение) в траншее | J134: 175789.78 | K134: 351579.56 | L134: =ROUND(IF(VALUE(Калькулятор!$E$10)>150,K134,J134),2) -> 175789.78 | N134: 0
A135: 2.2.3.4 | B135: КЛ 6-10 кВ кабелем АСБ сечением 3х120 мм² (1 цепное исполнение) в траншее | J135: 186290.935 | K135: 372581.87 | L135: =ROUND(IF(VALUE(Калькулятор!$E$10)>150,K135,J135),2) -> 186290.94 | N135: 0
A136: 2.2.3.5 | B136: КЛ 6-10 кВ кабелем АСБ сечением 3х150 мм² (1 цепное исполнение) в траншее | J136: 196618.465 | K136: 393236.93 | L136: =ROUND(IF(VALUE(Калькулятор!$E$10)>150,K136,J136),2) -> 196618.47 | N136: 0
A137: 2.2.3.6 | B137: КЛ 6-10 кВ кабелем АСБ сечением 3х185 мм² (1 цепное исполнение) в траншее | J137: 207227.745 | K137: 414455.49 | L137: =ROUND(IF(VALUE(Калькулятор!$E$10)>150,K137,J137),2) -> 207227.75 | N137: 0
A138: 2.2.3.7 | B138: КЛ 6-10 кВ кабелем АСБ сечением 3х240 мм² (1 цепное исполнение) в траншее | J138: 227781.61 | K138: 455563.22 | L138: =ROUND(IF(VALUE(Калькулятор!$E$10)>150,K138,J138),2) -> 227781.61 | N138: 0
A139: 2.2.4. | B139: Кабель бронированный в алюминиевой оболочке с алюминиевой токопроводящей жилой
A140: 2.2.4.1 | B140: КЛ 6-10 кВ кабелем ААБл-10 сечением 3х70 мм² (1 цепное исполнение) в траншее | J140: 165339.775 | K140: 330679.55 | L140: =ROUND(IF(VALUE(Калькулятор!$E$10)>150,K140,J140),2) -> 165339.78 | N140: 0
A141: 2.2.4.2 | B141: КЛ 6-10 кВ кабелем ААБл-10 сечением 3х95 мм² (1 цепное исполнение) в траншее | J141: 175660.025 | K141: 351320.05 | L141: =ROUND(IF(VALUE(Калькулятор!$E$10)>150,K141,J141),2) -> 175660.03 | N141: 0
A142: 2.2.4.3 | B142: КЛ 6-10 кВ кабелем ААБл-10 сечением 3х120 мм² (1 цепное исполнение) в траншее | J142: 186071.26 | K142: 372142.52 | L142: =ROUND(IF(VALUE(Калькулятор!$E$10)>150,K142,J142),2) -> 186071.26 | N142: 0
A143: 2.2.4.4 | B143: КЛ 6-10 кВ кабелем ААБл-10 сечением 3х150 мм² (1 цепное исполнение) в траншее | J143: =K143/2 -> 196679.68 | K143: 393359.36 | L143: =ROUND(IF(VALUE(Калькулятор!$E$10)>150,K143,J143),2) -> 196679.68 | N143: 0
A144: 2.2.4.5 | B144: КЛ 6-10 кВ кабелем ААБл-10 сечением 3х185 мм² (1 цепное исполнение) в траншее | J144: 207202.325 | K144: 414404.65 | L144: =ROUND(IF(VALUE(Калькулятор!$E$10)>150,K144,J144),2) -> 207202.33 | N144: 0
A145: 2.2.4.6 | B145: КЛ 6-10 кВ кабелем ААБл-10 сечением 3х240 мм² (1 цепное исполнение) в траншее | J145: 227781.61 | K145: 455563.22 | L145: =ROUND(IF(VALUE(Калькулятор!$E$10)>150,K145,J145),2) -> 227781.61 | N145: 0
A146: 2.2.4.7 | B146: КЛ 6-10 кВ кабелем ААБл-10 сечением 3х95 мм² (2 цепное исполнение) в траншее | J146: 298926.84 | K146: 597853.68 | L146: =ROUND(IF(VALUE(Калькулятор!$E$10)>150,K146,J146),2) -> 298926.84 | N146: 0
A147: 2.2.4.8 | B147: КЛ 6-10 кВ кабелем ААБл-10 сечением 3х120 мм² (2 цепное исполнение) в траншее | J147: 316679.955 | K147: 633359.91 | L147: =ROUND(IF(VALUE(Калькулятор!$E$10)>150,K147,J147),2) -> 316679.96 | N147: 0
A148: 2.2.4.9 | B148: КЛ 6-10 кВ кабелем ААБл-10 сечением 3х150 мм² (2 цепное исполнение) в траншее | J148: 334472.91 | K148: 668945.82 | L148: =ROUND(IF(VALUE(Калькулятор!$E$10)>150,K148,J148),2) -> 334472.91 | N148: 0
A149: 2.2.5. | B149: Кабель силовой
A150: 2.2.5.1 | B150: КЛ 6-10 кВ кабелем ААВлУ сечением 3х50 мм² (1 цепное исполнение) в траншее | J150: 154841.9 | K150: 309683.8 | L150: =ROUND(IF(VALUE(Калькулятор!$E$10)>150,K150,J150),2) -> 154841.9 | N150: 0
A151: 2.2.5.2 | B151: КЛ 6-10 кВ кабелем ААВлУ сечением 3х70 мм² (1 цепное исполнение) в траншее | J151: 175841.51 | K151: 351683.02 | L151: =ROUND(IF(VALUE(Калькулятор!$E$10)>150,K151,J151),2) -> 175841.51 | N151: 0
A152: 2.2.5.3 | B152: КЛ 6-10 кВ кабелем ААБлУ сечением 3х95 мм² (1 цепное исполнение) в траншее | J152: 184631.68 | K152: 369263.36 | L152: =ROUND(IF(VALUE(Калькулятор!$E$10)>150,K152,J152),2) -> 184631.68 | N152: 0
A153: 2.2.5.4 | B153: КЛ 6-10 кВ кабелем ААБлУ сечением 3х120 мм² (1 цепное исполнение) в траншее | J153: 195608.795 | K153: 391217.59 | L153: =ROUND(IF(VALUE(Калькулятор!$E$10)>150,K153,J153),2) -> 195608.8 | N153: 0
A154: 2.2.5.5 | B154: КЛ 6-10 кВ кабелем ААБлУ сечением 3х150 мм² (1 цепное исполнение) в траншее | J154: 206585.985 | K154: 413171.97 | L154: =ROUND(IF(VALUE(Калькулятор!$E$10)>150,K154,J154),2) -> 206585.99 | N154: 0
A155: 2.2.5.6 | B155: КЛ 6-10 кВ кабелем ААБлУ сечением 3х240 мм² (1 цепное исполнение) в траншее | J155: 239170.69 | K155: 478341.38 | L155: =ROUND(IF(VALUE(Калькулятор!$E$10)>150,K155,J155),2) -> 239170.69 | N155: 0
A156: 2.2.5.7 | B156: КЛ 6-10 кВ кабелем ААШв сечением 3х50 мм² (1 цепное исполнение) в траншее | J156: 145910 | K156: 291820 | L156: =ROUND(IF(VALUE(Калькулятор!$E$10)>150,K156,J156),2) -> 145910 | N156: 0
A157: 2.2.5.8 | B157: КЛ 6-10 кВ кабелем ААШв сечением 3х70 мм² (1 цепное исполнение) в траншее | J157: 165315.93 | K157: 330631.86 | L157: =ROUND(IF(VALUE(Калькулятор!$E$10)>150,K157,J157),2) -> 165315.93 | N157: 0
A158: 2.2.5.9 | B158: КЛ 6-10 кВ кабелем ААШв сечением 3х120 мм² (1 цепное исполнение) в траншее | J158: 186289.305 | K158: 372578.61 | L158: =ROUND(IF(VALUE(Калькулятор!$E$10)>150,K158,J158),2) -> 186289.31 | N158: 0
A159: 2.2.5.10 | B159: КЛ 6-10 кВ кабелем ААШв сечением 3х150 мм² (1 цепное исполнение) в траншее | J159: 196507.66 | K159: 393015.32 | L159: =ROUND(IF(VALUE(Калькулятор!$E$10)>150,K159,J159),2) -> 196507.66 | N159: 0
A160: 2.2.5.11 | B160: КЛ 6-10 кВ кабелем ААШв сечением 3х185 мм² (1 цепное исполнение) в траншее | J160: 207156.49 | K160: 414312.98 | L160: =ROUND(IF(VALUE(Калькулятор!$E$10)>150,K160,J160),2) -> 207156.49 | N160: 0
A161: 2.2.5.12 | B161: КЛ 6-10 кВ кабелем ААШв сечением 3х240 мм² (1 цепное исполнение) в траншее | J161: 227781.61 | K161: 455563.22 | L161: =ROUND(IF(VALUE(Калькулятор!$E$10)>150,K161,J161),2) -> 227781.61 | N161: 0
A162: 2.2.5.13 | B162: КЛ 6-10 кВ кабелем ААШвУ сечением 3х50 мм² (1 цепное исполнение) в траншее | J162: 154761.355 | K162: 309522.71 | L162: =ROUND(IF(VALUE(Калькулятор!$E$10)>150,K162,J162),2) -> 154761.36 | N162: 0
A163: 2.2.5.14 | B163: КЛ 6-10 кВ кабелем ААШвУ сечением 3х70 мм² (1 цепное исполнение) в траншее | J163: 165024.13 | K163: 330048.26 | L163: =ROUND(IF(VALUE(Калькулятор!$E$10)>150,K163,J163),2) -> 165024.13 | N163: 0
A164: 2.2.5.15 | B164: КЛ 6-10 кВ кабелем ААШвУ сечением 3х95 мм² (1 цепное исполнение) в траншее | J164: 175870.54 | K164: 351741.08 | L164: =ROUND(IF(VALUE(Калькулятор!$E$10)>150,K164,J164),2) -> 175870.54 | N164: 0
A165: 2.2.5.16 | B165: КЛ 6-10 кВ кабелем ААШвУ сечением 3х120 мм² (1 цепное исполнение) в траншее | J165: 186213.255 | K165: 372426.51 | L165: =ROUND(IF(VALUE(Калькулятор!$E$10)>150,K165,J165),2) -> 186213.26 | N165: 0
A166: 2.2.5.17 | B166: КЛ 6-10 кВ кабелем АСБлУ сечением 3х150 мм² в траншее | J166: 183736.795 | K166: 367473.59 | L166: =ROUND(IF(VALUE(Калькулятор!$E$10)>150,K166,J166),2) -> 183736.8 | N166: 0
A167: 2.2.5.18 | B167: КЛ 6-10 кВ кабелем АСБлУ сечением 3х185 мм² в траншее | J167: 207364.38 | K167: 414728.76 | L167: =ROUND(IF(VALUE(Калькулятор!$E$10)>150,K167,J167),2) -> 207364.38 | N167: 0
A168: 2.2.5.19 | B168: КЛ 6-10 кВ кабелем АСБлУ сечением 3х240 мм² в траншее | J168: 235504.685 | K168: 471009.37 | L168: =ROUND(IF(VALUE(Калькулятор!$E$10)>150,K168,J168),2) -> 235504.69 | N168: 0
A169: 2.2.5.20 | B169: КЛ 6-10 кВ кабелем АВБбШв сечением 3х120 мм² (1 цепное исполнение) в траншее | J169: 98395.485 | K169: 196790.97 | L169: =ROUND(IF(VALUE(Калькулятор!$E$10)>150,K169,J169),2) -> 98395.49 | N169: 0
A170: 2.2.5.21 | B170: КЛ 6-10 кВ кабелем АВБбШв сечением 3х185 мм² (1 цепное исполнение) в траншее | J170: 132950.835 | K170: 265901.67 | L170: =ROUND(IF(VALUE(Калькулятор!$E$10)>150,K170,J170),2) -> 132950.84 | N170: 0
A171: 2.2.5.22 | B171: КЛ 6-10 кВ кабелем АВБбШв сечением 3х240 мм² (1 цепное исполнение) в траншее | J171: 152080.665 | K171: 304161.33 | L171: =ROUND(IF(VALUE(Калькулятор!$E$10)>150,K171,J171),2) -> 152080.67 | N171: 0
A172: 2.2.5.23 | B172: КЛ 6-10 кВ кабелем СБнУ сечением 3х50 мм² в траншее | J172: 164476.82 | K172: 328953.64 | L172: =ROUND(IF(VALUE(Калькулятор!$E$10)>150,K172,J172),2) -> 164476.82 | N172: 0
A173: 2.2.5.24 | B173: КЛ 6-10 кВ кабелем СБнУ сечением 3х70 мм² в траншее | J173: 191642.52 | K173: 383285.04 | L173: =ROUND(IF(VALUE(Калькулятор!$E$10)>150,K173,J173),2) -> 191642.52 | N173: 0
A174: 2.2.5.25 | B174: КЛ 6-10 кВ кабелем СБнУ сечением 3х95 мм² в траншее | J174: 228239.84 | K174: 456479.68 | L174: =ROUND(IF(VALUE(Калькулятор!$E$10)>150,K174,J174),2) -> 228239.84 | N174: 0
A175: 2.2.5.26 | B175: КЛ 6-10 кВ кабелем СБнУ сечением 3х120 мм² в траншее | J175: 265446.56 | K175: 530893.12 | L175: =ROUND(IF(VALUE(Калькулятор!$E$10)>150,K175,J175),2) -> 265446.56 | N175: 0
A176: 2.2.5.27 | B176: КЛ 6-10 кВ кабелем АСБл сечением 3х50 мм² (1 цепное исполнение) в траншее | J176: 170968.645 | K176: 341937.29 | L176: =ROUND(IF(VALUE(Калькулятор!$E$10)>150,K176,J176),2) -> 170968.65 | N176: 0
A177: 2.2.5.28 | B177: КЛ 6-10 кВ кабелем АСБл сечением 3х70 мм² (1 цепное исполнение) в траншее | J177: 196042.635 | K177: 392085.27 | L177: =ROUND(IF(VALUE(Калькулятор!$E$10)>150,K177,J177),2) -> 196042.64 | N177: 0
A178: 2.2.5.29 | B178: КЛ 6-10 кВ кабелем АСБл сечением 3х95 мм² (1 цепное исполнение) в траншее | J178: 222154.665 | K178: 444309.33 | L178: =ROUND(IF(VALUE(Калькулятор!$E$10)>150,K178,J178),2) -> 222154.67 | N178: 0
A179: 2.2.5.30 | B179: КЛ 6-10 кВ кабелем АСБл сечением 3х120 мм² (1 цепное исполнение) в траншее | J179: 237277.12 | K179: 474554.24 | L179: =ROUND(IF(VALUE(Калькулятор!$E$10)>150,K179,J179),2) -> 237277.12 | N179: 0
A180: 2.2.5.31 | B180: КЛ 6-10 кВ кабелем АСБл сечением 3х150 мм² (1 цепное исполнение) в траншее | J180: 267690.19 | K180: 535380.38 | L180: =ROUND(IF(VALUE(Калькулятор!$E$10)>150,K180,J180),2) -> 267690.19 | N180: 0
A181: 2.2.5.32 | B181: КЛ 6-10 кВ кабелем АСБл сечением 3х185 мм² (1 цепное исполнение) в траншее | J181: 306012.91 | K181: 612025.82 | L181: =ROUND(IF(VALUE(Калькулятор!$E$10)>150,K181,J181),2) -> 306012.91 | N181: 0
A182: 2.2.5.33 | B182: КЛ 6-10 кВ кабелем АСБл сечением 3х240 мм² (1 цепное исполнение) в траншее | J182: 359920.1 | K182: 719840.2 | L182: =ROUND(IF(VALUE(Калькулятор!$E$10)>150,K182,J182),2) -> 359920.1 | N182: 0
A183: 2.3. | B183: Горизонтально-направленное бурение
A184: 2.3.1. | B184: Горизонтально-направленное бурение при прокладке КЛ 0,4 кВ
A185: 2.3.1.1 | B185: КЛ 0,4 кВ кабелем АПвБШв-1 с сечением 4х50 мм² методом гнб | J185: 302430.51 | K185: 604861.02 | L185: =ROUND(IF(VALUE(Калькулятор!$E$10)>150,K185,J185),2) -> 302430.51 | N185: =PRODUCT(VALUE(L185),IF(I185="",0,VALUE(I185))) -> 0
A186: 2.3.1.2 | B186: КЛ 0,4 кВ кабелем АПвБШв-1 с сечением 4х70 мм² методом гнб | J186: 310110 | K186: 620220 | L186: =ROUND(IF(VALUE(Калькулятор!$E$10)>150,K186,J186),2) -> 310110 | N186: 0
A187: 2.3.1.3 | B187: КЛ 0,4 кВ кабелем АПвБШв-1 с сечением 4х95 мм² методом гнб | J187: 317789.505 | K187: 635579.01 | L187: =ROUND(IF(VALUE(Калькулятор!$E$10)>150,K187,J187),2) -> 317789.51 | N187: 0
A188: 2.3.1.4 | B188: КЛ 0,4 кВ кабелем АПвБШв-1 с сечением 4х120 мм² методом гнб | J188: 395466.79 | K188: 790933.58 | L188: =ROUND(IF(VALUE(Калькулятор!$E$10)>150,K188,J188),2) -> 395466.79 | N188: 0
A189: 2.3.1.5 | B189: КЛ 0,4 кВ кабелем АПвБШв-1 с сечением 4х240 мм² методом гнб | J189: 803198.385 | K189: 1606396.77 | L189: =ROUND(IF(VALUE(Калькулятор!$E$10)>150,K189,J189),2) -> 803198.39 | N189: 0
A190: 2.3.1.6 | B190: КЛ 0,4 кВ кабелем ПвБбШв с сечением 4х50 мм² (1 цепное исполнение) методом гнб | J190: 377893.23 | K190: 755786.46 | L190: =ROUND(IF(VALUE(Калькулятор!$E$10)>150,K190,J190),2) -> 377893.23 | N190: 0
A191: 2.3.1.7 | B191: КЛ 0,4 кВ кабелем ПвБбШв с сечением 4х95 мм² (1 цепное исполнение) методом гнб | J191: 533960.31 | K191: 1067920.62 | L191: =ROUND(IF(VALUE(Калькулятор!$E$10)>150,K191,J191),2) -> 533960.31 | N191: 0
A192: 2.3.1.8 | B192: КЛ 0,4 кВ кабелем ПвБбШв с сечением 4х120 мм² (1 цепное исполнение) методом гнб | J192: 584235.385 | K192: 1168470.77 | L192: =ROUND(IF(VALUE(Калькулятор!$E$10)>150,K192,J192),2) -> 584235.39 | N192: 0
A193: 2.3.1.9 | B193: КЛ 0,4 кВ кабелем ПвБбШв с сечением 4х240 мм² (1 цепное исполнение) методом гнб | J193: 1180169.075 | K193: 2360338.15 | L193: =ROUND(IF(VALUE(Калькулятор!$E$10)>150,K193,J193),2) -> 1180169.08 | N193: 0
A194: 2.3.1.10 | B194: КЛ 0,4 кВ кабелем ААБл-1 сечением 70 мм² методом гнб | J194: 347196.525 | K194: 694393.05 | L194: =ROUND(IF(VALUE(Калькулятор!$E$10)>150,K194,J194),2) -> 347196.53 | N194: 0
A195: 2.3.1.11 | B195: КЛ 0,4 кВ кабелем ААБл-1 сечением 150 мм² методом гнб | J195: 404429.975 | K195: 808859.95 | L195: =ROUND(IF(VALUE(Калькулятор!$E$10)>150,K195,J195),2) -> 404429.98 | N195: 0
A196: 2.3.1.12 | B196: КЛ 0,4 кВ кабелем ААБл-1 сечением 185 мм² методом гнб | J196: 422529.15 | K196: 845058.3 | L196: =ROUND(IF(VALUE(Калькулятор!$E$10)>150,K196,J196),2) -> 422529.15 | N196: 0
A197: 2.3.1.13 | B197: КЛ 0,4 кВ кабелем АВБбШв 4х50 мм² методом гнб | J197: 301388.145 | K197: 602776.29 | L197: =ROUND(IF(VALUE(Калькулятор!$E$10)>150,K197,J197),2) -> 301388.15 | N197: 0
A198: 2.3.1.14 | B198: КЛ 0,4 кВ кабелем АВБбШв 4х70 мм² методом гнб | J198: 347196.655 | K198: 694393.31 | L198: =ROUND(IF(VALUE(Калькулятор!$E$10)>150,K198,J198),2) -> 347196.66 | N198: 0
A199: 2.3.1.15 | B199: КЛ 0,4 кВ кабелем АВБбШв 4х95 мм² методом гнб | J199: 393005.16 | K199: 786010.32 | L199: =ROUND(IF(VALUE(Калькулятор!$E$10)>150,K199,J199),2) -> 393005.16 | N199: 0
A200: 2.3.1.16 | B200: КЛ 0,4 кВ кабелем АВБбШв 4х120 мм² методом гнб | J200: 398717.57 | K200: 797435.14 | L200: =ROUND(IF(VALUE(Калькулятор!$E$10)>150,K200,J200),2) -> 398717.57 | N200: 0
A201: 2.3.1.17 | B201: КЛ 0,4 кВ кабелем АВБбШв 4х150 мм² методом гнб | J201: 404338.91 | K201: 808677.82 | L201: =ROUND(IF(VALUE(Калькулятор!$E$10)>150,K201,J201),2) -> 404338.91 | N201: 0
A202: 2.3.1.18 | B202: КЛ 0,4 кВ кабелем АВБбШв 4х185 мм² методом гнб | J202: 422652.7 | K202: 845305.4 | L202: =ROUND(IF(VALUE(Калькулятор!$E$10)>150,K202,J202),2) -> 422652.7 | N202: 0
A203: 2.3.2. | B203: Горизонтально-направленное бурение при прокладке КЛ 6-10 кВ
... 96 more rows
